bitfinex/quotes_SOLUSD_20241019
["timestamp","ask_amount","ask_price","bid_price","bid_amount"]
[1729302721182,23.776884,154.68,154.58,20.0]
[1729302724704,23.776884,154.68,154.57,6.2716]
[1729302724879,30.241784,154.68,154.57,6.2716]
[1729302725198,30.241784,154.68,154.55,15.937]
[1729302725397,36.92693589,154.68,154.55,15.937]
[1729302725584,30.46203589,154.68,154.55,15.937]
[1729302726302,30.46203589,154.68,154.56,20.0]
[1729302726805,36.92703589,154.68,154.56,20.0]
[1729302727297,23.776884,154.66,154.56,20.0]
[1729302728615,23.776884,154.64,154.56,20.0]
[1729302729401,29.975884,154.64,154.54,20.0]
[1729302732703,23.776884,154.64,154.56,20.0]
[1729302740405,7.42964877,154.72,154.6,20.0]
[1729302740619,7.42964877,154.72,154.6,27.61805802]
[1729302741203,6.3065,154.72,154.6,27.61805802]
[1729302741808,6.3065,154.72,154.62,20.0]
[1729302742310,23.776884,154.71,154.62,20.0]
[1729302747034,23.776884,154.72,154.62,20.0]
[1729302751322,23.776884,154.72,154.64,20.0]
[1729302751696,23.776884,154.72,154.62,20.0]
[1729302755638,6.3065,154.76,154.64,20.0]
[1729302755923,6.3065,154.76,154.66,20.0]
[1729302756424,6.3065,154.76,154.66,22.98]
[1729302757000,16.4145,154.77,154.66,22.98]
[1729302757300,16.4145,154.77,154.68,20.0]
[1729302757504,6.67938139,154.78,154.69,6.6204]
[1729302757720,6.67938139,154.78,154.7,20.0]
[1729302757908,15.5215,154.81,154.7,20.0]
[1729302758709,15.5215,154.81,154.7,26.473]
[1729302759101,23.776884,154.8,154.7,26.473]
[1729302759715,23.776884,154.8,154.7,20.0]
[1729302761612,23.776884,154.8,154.7,27.61805802]
[1729302767822,23.776884,154.8,154.71,16.19]
[1729302768013,23.776884,154.8,154.72,20.0]
[1729302768414,23.776884,154.8,154.72,27.61805802]
[1729302769223,23.776884,154.8,154.75,20.0]
[1729302776519,23.776884,154.8,154.73,20.0]
[1729302776835,23.776884,154.8,154.72,20.0]
[1729302778135,40.167784,154.8,154.71,16.19]
[1729302778319,40.167784,154.8,154.67,21.27172582]
[1729302778734,23.776884,154.78,154.67,15.2613]
[1729302780119,23.776884,154.78,154.68,22.98]
[1729302781419,23.776884,154.79,154.68,22.98]
[1729302781716,6.1294,154.83,154.7,20.0]
[1729302782924,23.776884,154.82,154.7,26.473]
[1729302784540,23.776884,154.82,154.7,20.0]
[1729302784857,23.776884,154.82,154.7,26.473]
[1729302787637,23.776884,154.82,154.7,26.2437295]
[1729302788729,23.776884,154.82,154.7,27.38878752]
[1729302789115,23.776884,154.82,154.71,15.2613]
[1729302789446,23.776884,154.82,154.72,6.473]
[1729302789618,23.776884,154.82,154.71,15.2613]
[1729302789823,23.776884,154.82,154.73,20.0]
[1729302790246,23.776884,154.82,154.72,20.0]
[1729302799747,23.776884,154.82,154.74,20.0]
[1729302800445,23.776884,154.82,154.72,20.0]
[1729302804751,15.0623,154.81,154.72,20.0]
[1729302804940,23.776884,154.8,154.69,6.1561]
[1729302806145,23.776884,154.8,154.7,20.0]
[1729302809839,23.776884,154.8,154.72,20.0]
[1729302810236,23.776884,154.8,154.7,20.0]
[1729302818559,23.776884,154.8,154.71,0.07]
[1729302819456,23.776884,154.8,154.7,20.0]
[1729302822362,23.776884,154.8,154.71,0.07]
[1729302822861,23.776884,154.8,154.73,20.0]
[1729302823847,23.776884,154.8,154.74,0.07]
[1729302830362,23.776884,154.8,154.69,6.1561]
[1729302830549,23.776884,154.8,154.71,4.17]
[1729302831444,23.776884,154.78,154.71,4.17]
[1729302831749,23.776884,154.8,154.71,4.17]
[1729302832638,23.776884,154.8,154.7,20.0]
[1729302834171,23.776884,154.8,154.71,4.1]
[1729302834350,30.236984,154.8,154.71,4.1]
[1729302835450,30.236984,154.8,154.7,20.0]
[1729302836835,30.236984,154.8,154.69,20.0]
[1729302838841,30.236984,154.8,154.7,4.1]
[1729302840670,36.91804895,154.8,154.7,4.1]
[1729302842046,36.91804895,154.8,154.69,20.0]
[1729302846366,23.776884,154.76,154.66,20.0]
[1729302846550,30.238684,154.76,154.66,20.0]
[1729302847270,23.776884,154.74,154.66,20.0]
[1729302847445,23.776884,154.74,154.61,21.611]
[1729302847848,23.776884,154.74,154.62,20.0]
[1729302855787,23.776884,154.72,154.62,20.0]
[1729302856360,30.240484,154.72,154.62,20.0]
[1729302856566,30.240484,154.72,154.61,21.611]
[1729302856773,43.186884,154.72,154.61,21.611]
[1729302856975,23.776884,154.7,154.57,22.3119]
[1729302857886,23.776884,154.7,154.58,20.0]
[1729302861183,30.45779253,154.7,154.58,20.0]
[1729302871712,49.684884,154.68,154.58,20.0]
[1729302871867,39.666784,154.65,154.53,22.8453]
[1729302872069,59.076784,154.65,154.53,22.8453]
[1729302872275,23.776884,154.63,154.53,22.8453]
[1729302873081,49.684884,154.63,154.51,9.42979579]
[1729302873404,49.684884,154.63,154.49,22.8453]
[1729302873405,23.776884,154.6,154.49,22.8453]
[1729302873702,23.776884,154.58,154.49,22.8453]
[1729302874495,23.776884,154.58,154.5,20.0]
[1729302876080,23.776884,154.58,154.47,18.18356827]
[1729302876287,23.776884,154.58,154.45,22.8453]
[1729302876791,30.246084,154.58,154.45,22.8453]
[1729302877871,30.246084,154.58,154.46,20.0]
[1729302880195,6.5884,154.57,154.46,20.0]
[1729302880394,23.776884,154.56,154.46,20.0]
[1729302882678,4.93629891,154.56,154.46,20.0]
[1729302882878,23.776884,154.56,154.46,20.0]
[1729302884693,23.776884,154.56,154.55,12.85526511]
[1729302891895,23.776884,154.56,154.46,20.0]
[1729302893302,23.776884,154.56,154.47,9.5827119]
[1729302893728,23.776884,154.56,154.48,20.0]
[1729302905293,23.776884,154.56,154.46,20.0]
[1729302914106,23.776884,154.56,154.47,9.5827119]
[1729302914400,23.776884,154.56,154.48,20.0]
[1729302914607,6.68157438,154.57,154.48,29.5827119]
[1729302916407,23.776884,154.58,154.5,20.0]
[1729302918331,23.776884,154.58,154.46,20.0]
[1729302918532,23.776884,154.58,154.47,9.5827119]
[1729302918705,23.776884,154.58,154.48,20.0]
[1729302920801,23.776884,154.55,154.48,20.0]
[1729302921008,23.776884,154.55,154.46,20.0]
[1729302923332,23.776884,154.56,154.46,20.0]
[1729302923723,31.83098096,154.56,154.46,20.0]
[1729302924318,23.776884,154.55,154.46,20.0]
[1729302924933,31.83207606,154.55,154.46,20.0]
[1729302926251,23.776884,154.55,154.46,20.0]
[1729302926440,31.83150481,154.55,154.46,20.0]
[1729302926937,38.51176995,154.55,154.46,20.0]
[1729302930031,30.45714914,154.55,154.46,20.0]
[1729302933437,38.51176995,154.55,154.46,20.0]
[1729302934150,30.45714914,154.55,154.46,20.0]
[1729302936556,23.776884,154.55,154.46,20.0]
[1729302937367,8.05462081,154.56,154.46,20.0]
[1729302937661,8.05462081,154.56,154.46,29.5827119]
[1729302938637,23.776884,154.55,154.46,29.5827119]
[1729302938837,23.776884,154.55,154.46,20.0]
[1729302941676,31.83280555,154.56,154.46,29.5827119]
[1729302943147,8.05592155,154.55,154.46,29.5827119]
[1729302943342,23.776884,154.54,154.46,20.0]
[1729302944044,31.83280555,154.54,154.46,20.0]
[1729302944465,23.776884,154.54,154.46,20.0]
[1729302945474,8.05459639,154.54,154.46,20.0]
[1729302945857,23.776884,154.53,154.46,20.0]
[1729302946375,23.776884,154.54,154.46,20.0]
[1729302948268,8.05459639,154.53,154.46,20.0]
[1729302950364,31.83148039,154.54,154.46,20.0]
[1729302951259,8.05459639,154.53,154.46,20.0]
[1729302951463,31.83148039,154.54,154.46,20.0]
[1729302951773,8.05459639,154.53,154.46,20.0]
[1729302953278,31.83148039,154.54,154.46,20.0]
[1729302955472,23.776884,154.54,154.46,20.0]
[1729302956581,43.186884,154.54,154.46,20.0]
[1729302956771,31.83148039,154.54,154.46,20.0]
[1729302957270,48.13108039,154.54,154.46,20.0]
[1729302958679,48.13108039,154.54,154.45,22.8453]
[1729302959865,48.13108039,154.54,154.46,20.0]
[1729302960678,40.076484,154.54,154.46,20.0]
[1729302960884,48.11900841,154.54,154.46,20.0]
[1729302963369,23.776884,154.52,154.46,20.0]
[1729302964194,23.776884,154.53,154.46,20.0]
[1729302965295,31.81940841,154.53,154.46,20.0]
[1729302967376,31.81707529,154.53,154.46,20.0]
[1729302971301,23.776884,154.53,154.46,20.0]
[1729302971598,31.8189718,154.53,154.46,20.0]
[1729302972598,23.776884,154.5,154.42,0.6297555]
[1729302972790,31.8189718,154.5,154.42,0.6297555]
[1729302973184,30.4590248,154.5,154.42,0.6297555]
[1729302973581,38.5011126,154.5,154.42,0.6297555]
[1729302974605,30.4590248,154.5,154.42,0.6297555]
[1729302982376,23.776884,154.47,154.42,0.6297555]
[1729302983390,23.776884,154.46,154.42,0.6297555]
[1729302996894,23.776884,154.44,154.42,0.6297555]
[1729302997290,23.776884,154.46,154.42,0.6297555]
[1729303005118,23.776884,154.47,154.42,0.6297555]
[1729303005319,23.776884,154.44,154.42,0.6297555]
[1729303019920,23.776884,154.45,154.42,0.6297555]
[1729303024336,31.83064009,154.45,154.42,0.6297555]
[1729303025212,23.776884,154.43,154.42,0.6297555]
[1729303029528,8.05217876,154.44,154.42,0.6297555]
[1729303030036,8.05217876,154.45,154.42,0.6297555]
[1729303030341,8.05217876,154.44,154.42,0.6297555]
[1729303030545,8.05217876,154.45,154.42,0.6297555]
[1729303031040,23.776884,154.44,154.42,0.6297555]
[1729303031228,31.82850687,154.45,154.42,0.6297555]
[1729303033125,23.776884,154.45,154.42,0.6297555]
[1729303035047,23.776884,154.46,154.42,0.6297555]
[1729303035224,31.82889968,154.46,154.42,0.6297555]
[1729303037118,23.776884,154.44,154.42,0.6297555]
[1729303037342,31.82889968,154.46,154.42,0.6297555]
[1729303040549,23.776884,154.46,154.42,0.6297555]
[1729303041125,31.82889968,154.46,154.42,0.6297555]
[1729303042728,23.776884,154.46,154.42,0.6297555]
[1729303044044,31.82887481,154.46,154.42,0.6297555]
[1729303044926,23.776884,154.46,154.42,0.6297555]
[1729303048130,23.776884,154.47,154.42,0.6297555]
[1729303048545,23.776884,154.45,154.42,0.6297555]
[1729303054644,31.82887481,154.45,154.42,0.6297555]
[1729303058146,23.776884,154.45,154.42,0.6297555]
[1729303058458,31.82659828,154.45,154.42,0.6297555]
[1729303058642,23.776884,154.45,154.42,0.6297555]
[1729303058954,31.82668126,154.45,154.42,0.6297555]
[1729303062138,31.8266381,154.45,154.42,0.6297555]
[1729303062736,8.0497541,154.44,154.42,0.6297555]
[1729303063356,31.8266381,154.45,154.42,0.6297555]
[1729303064659,8.0497541,154.44,154.42,0.6297555]
[1729303065667,31.8266381,154.45,154.42,0.6297555]
[1729303066041,8.0497541,154.44,154.42,0.6297555]
[1729303067165,31.8266381,154.45,154.42,0.6297555]
[1729303068048,8.0497541,154.44,154.42,0.6297555]
[1729303069957,31.8266381,154.45,154.42,0.6297555]
[1729303070359,31.82304479,154.45,154.42,0.6297555]
[1729303072565,8.04616079,154.45,154.42,0.6297555]
[1729303073147,8.04616079,154.46,154.42,0.6297555]
[1729303073349,8.04616079,154.45,154.42,0.6297555]
[1729303075163,8.04616079,154.46,154.42,0.6297555]
[1729303081062,8.04264493,154.46,154.42,0.6297555]
[1729303081576,8.04257559,154.46,154.42,0.6297555]
[1729303088767,8.04404482,154.46,154.42,0.6297555]
[1729303089668,23.776884,154.5,154.42,0.6297555]
[1729303089993,8.04426236,154.46,154.42,0.6297555]
[1729303091268,8.04426236,154.45,154.42,0.6297555]
[1729303092075,23.776884,154.45,154.42,0.6297555]
[1729303092287,31.82114636,154.45,154.42,0.6297555]
[1729303093378,31.82292996,154.45,154.42,0.6297555]
[1729303093973,8.04604596,154.44,154.42,0.6297555]
[1729303101195,8.0433482,154.44,154.42,0.6297555]
[1729303105171,8.04174027,154.44,154.42,0.6297555]
[1729303107999,8.04174027,154.43,154.42,0.6297555]
[1729303109287,8.04057712,154.43,154.42,0.6297555]
[1729303115977,31.81746112,154.45,154.42,0.6297555]
[1729303117407,31.81349348,154.45,154.42,0.6297555]
[1729303120307,8.03660948,154.44,154.42,0.6297555]
[1729303121386,8.03640051,154.44,154.42,0.6297555]
[1729303122893,31.81328451,154.45,154.42,0.6297555]
[1729303123798,8.03640051,154.44,154.42,0.6297555]
[1729303127483,31.81328451,154.45,154.42,0.6297555]
[1729303127683,8.03640051,154.44,154.42,0.6297555]
[1729303128187,31.81328451,154.45,154.42,0.6297555]
[1729303129308,8.03640051,154.44,154.42,0.6297555]
[1729303129496,8.03696396,154.44,154.42,0.6297555]
[1729303131897,31.81384796,154.45,154.42,0.6297555]
[1729303132100,8.03696396,154.44,154.42,0.6297555]
[1729303137908,8.03996239,154.44,154.42,0.6297555]
[1729303138802,8.03996239,154.43,154.42,0.6297555]
[1729303139703,8.03996239,154.44,154.42,0.6297555]
[1729303140716,8.03996239,154.43,154.42,0.6297555]
[1729303143014,8.03996239,154.44,154.42,0.6297555]
[1729303144292,8.03996239,154.43,154.42,0.6297555]
[1729303144917,8.03996239,154.44,154.42,0.6297555]
[1729303148812,8.03936934,154.44,154.42,0.6297555]
[1729303149804,23.776884,154.45,154.42,0.6297555]
[1729303150009,8.03933727,154.44,154.42,0.6297555]
[1729303150308,8.03933727,154.43,154.42,0.6297555]
[1729303150721,31.81622127,154.43,154.42,0.6297555]
[1729303150905,23.776884,154.43,154.42,0.6297555]
[1729303151309,40.053784,154.43,154.42,0.6297555]
[1729303152117,46.529184,154.43,154.42,0.6297555]
[1729303155125,46.529184,154.43,154.42,0.1297555]
[1729303156510,40.053784,154.43,154.42,0.1297555]
[1729303161503,46.79031235,154.43,154.42,0.1297555]
[1729303164116,54.80628548,154.43,154.42,0.1297555]
[1729303164638,40.053784,154.43,154.42,0.1297555]
[1729303164930,48.06929874,154.43,154.42,0.1297555]
[1729303167911,31.79239874,154.43,154.42,0.1297555]
[1729303171025,30.252284,154.43,154.42,0.1297555]
[1729303175234,36.98925949,154.43,154.42,0.1297555]
[1729303179535,38.11516631,154.43,154.42,0.1297555]
[1729303185942,74.13146631,154.43,154.42,0.1297555]
[1729303186119,6.477,154.4,154.3,15.1664]
[1729303186439,8.01130181,154.39,154.3,15.1664]
[1729303187221,14.48850181,154.39,154.31,20.0]
[1729303187435,14.48850181,154.39,154.31,18.5]
[1729303188145,23.776884,154.38,154.31,18.5]
[1729303191462,8.01130181,154.39,154.31,18.5]
[1729303191634,6.73730502,154.4,154.32,6.5557]
[1729303191959,14.74859115,154.4,154.32,6.5557]
[1729303192836,23.776884,154.39,154.32,6.5557]
[1729303194663,31.78817013,154.39,154.32,6.5557]
[1729303195457,23.776884,154.39,154.32,6.5557]
[1729303195640,31.7956228,154.39,154.32,6.5557]
[1729303199464,31.79952412,154.39,154.32,6.5557]
[1729303199661,23.776884,154.39,154.32,6.5557]
[1729303200060,31.79952412,154.39,154.32,6.5557]
[1729303200753,23.776884,154.37,154.32,6.5557]
[1729303205349,23.776884,154.37,154.3,15.1664]
[1729303206346,30.254784,154.37,154.3,15.1664]
[1729303207175,23.776884,154.37,154.3,15.1664]
[1729303208042,8.02264012,154.39,154.31,20.0]
[1729303208266,8.02264012,154.38,154.31,20.0]
[1729303209573,8.02431045,154.38,154.31,20.0]
[1729303210071,8.02471609,154.38,154.31,20.0]
[1729303213250,23.776884,154.39,154.31,20.0]
[1729303213449,8.02704836,154.38,154.31,20.0]
[1729303213650,8.02704836,154.38,154.3,15.1664]
[1729303214252,23.776884,154.37,154.3,15.1664]
[1729303214976,31.80393236,154.37,154.3,15.1664]
[1729303215275,8.02704836,154.36,154.31,20.0]
[1729303215849,23.776884,154.37,154.31,20.0]
[1729303215850,31.80393236,154.37,154.31,20.0]
[1729303218660,38.53134868,154.37,154.31,20.0]
[1729303220660,61.59304868,154.37,154.28,6.6111]
[1729303220977,23.776884,154.35,154.28,6.6111]
[1729303224257,23.776884,154.35,154.27,20.0]
[1729303224781,6.4792,154.34,154.26,15.8005555]
[1729303224977,23.776884,154.33,154.26,15.8005555]
[1729303227359,23.776884,154.34,154.26,15.8005555]
[1729303228986,30.50476563,154.34,154.26,15.8005555]
[1729303231665,6.72788163,154.34,154.26,15.8005555]
[1729303231989,14.75461694,154.35,154.26,15.8005555]
[1729303232787,23.776884,154.34,154.26,15.8005555]
[1729303236273,8.02796779,154.36,154.26,15.8005555]
[1729303236274,8.02796779,154.36,154.27,20.0]
[1729303236590,24.61176779,154.37,154.27,20.0]
[1729303236887,24.61176779,154.37,154.28,6.2612]
[1729303237278,16.5838,154.37,154.28,6.2612]
[1729303237474,23.776884,154.37,154.29,20.0]
[1729303237878,8.02796779,154.38,154.29,20.0]
[1729303238079,14.75360096,154.39,154.31,20.0]
[1729303238290,8.02796779,154.39,154.31,20.0]
[1729303239289,23.776884,154.38,154.31,20.0]
[1729303239490,23.776884,154.39,154.31,20.0]
[1729303240292,31.80485179,154.39,154.31,20.0]
[1729303240882,23.776884,154.39,154.31,20.0]
[1729303241505,30.253984,154.39,154.31,20.0]
[1729303241793,30.254784,154.37,154.29,20.0]
[1729303241998,30.254784,154.37,154.28,6.2612]
[1729303242197,23.776884,154.37,154.28,6.2612]
[1729303243370,23.776884,154.37,154.29,20.0]
[1729303244271,31.80358521,154.37,154.29,20.0]
[1729303247874,31.80402626,154.37,154.29,20.0]
[1729303248977,38.52959216,154.37,154.29,20.0]
[1729303255493,30.5024499,154.37,154.29,20.0]
[1729303255701,38.53134576,154.37,154.29,20.0]
[1729303256079,30.5024499,154.37,154.29,20.0]
[1729303256385,38.53126879,154.37,154.29,20.0]
[1729303259583,38.53267537,154.37,154.29,20.0]
[1729303264198,38.53267537,154.37,154.3,16.5684]
[1729303266301,14.75713262,154.37,154.31,20.0]
[1729303266496,8.03156672,154.39,154.31,20.0]
[1729303266697,8.03248653,154.39,154.33,20.0]
[1729303267005,8.03248653,154.41,154.33,20.0]
[1729303267795,8.03248653,154.4,154.33,20.0]
[1729303268181,0.12291538,154.34,154.33,20.0]
[1729303269177,0.12291538,154.34,154.32,6.4121]
[1729303272702,0.12291538,154.34,154.33,20.0]
[1729303288222,0.25728685,154.34,154.33,20.0]
[1729303288593,0.13437147,154.34,154.33,20.0]
[1729303296005,0.12782969,154.35,154.33,20.0]
[1729303296006,0.12782969,154.35,154.34,43.776884]
[1729303296217,0.12782969,154.35,154.34,27.10796541]
[1729303296720,0.12782969,154.35,154.29,42.2969]
[1729303304233,0.12782969,154.35,154.31,20.0]
[1729303305419,0.12782969,154.35,154.31,27.10796541]
[1729303308322,0.05113931,154.32,154.31,50.88484941]
[1729303308630,0.03161013,154.32,154.31,50.88484941]
[1729303309233,0.03161013,154.32,154.31,27.10796541]
[1729303310128,0.03161013,154.32,154.31,20.0]
[1729303314842,4.8e-07,154.33,154.31,20.0]
[1729303315220,7.718e-05,154.34,154.31,20.0]
[1729303315428,7.715e-05,154.34,154.33,20.0]
[1729303315624,7.715e-05,154.34,154.33,50.88484941]
[1729303316640,7.715e-05,154.34,154.33,27.10796541]
[1729303317146,7.715e-05,154.34,154.3,20.0]
[1729303325636,7.715e-05,154.34,154.29,22.2969]
[1729303325637,7.715e-05,154.34,154.29,20.0]
[1729303325933,7.715e-05,154.34,154.23,7.10796541]
[1729303326439,8.04455849,154.34,154.23,7.10796541]
[1729303327722,8.04455849,154.34,154.24,20.0]
[1729303328421,7.715e-05,154.34,154.27,20.0]
[1729303328626,22.2393,154.35,154.27,20.0]
[1729303336566,10.60984596,154.37,154.29,43.776884]
[1729303336842,16.5657,154.51,154.31,43.776884]
[1729303336843,3.37961115,154.49,154.31,43.776884]
[1729303337052,6.72434909,154.42,154.31,43.776884]
[1729303337230,6.4738,154.47,154.33,20.0]
[1729303337543,6.72443367,154.42,154.35,20.0]
[1729303337858,6.4738,154.47,154.35,28.73246151]
[1729303338035,6.72444054,154.42,154.35,28.73246151]
[1729303338237,23.1893,154.48,154.37,20.0]
[1729303338546,6.72426728,154.42,154.37,20.0]
[1729303338845,23.776884,154.47,154.37,20.0]
[1729303339051,6.72426728,154.42,154.37,20.0]
[1729303339437,23.776884,154.47,154.37,20.0]
[1729303339747,6.72404591,154.42,154.37,20.0]
[1729303339933,23.776884,154.47,154.37,20.0]
[1729303340134,6.72394325,154.42,154.37,20.0]
[1729303340537,23.776884,154.47,154.37,20.0]
[1729303340743,6.72395929,154.42,154.37,20.0]
[1729303340932,23.776884,154.47,154.37,20.0]
[1729303341133,6.72392721,154.42,154.37,20.0]
[1729303341429,23.776884,154.47,154.37,20.0]
[1729303341643,6.72395929,154.42,154.37,20.0]
[1729303342033,23.776884,154.47,154.37,20.0]
[1729303342239,6.7241063,154.42,154.37,20.0]
[1729303342439,23.776884,154.47,154.37,20.0]
[1729303342846,6.72376349,154.42,154.37,8.73246151]
[1729303343048,23.776884,154.47,154.38,20.0]
[1729303343248,6.72409225,154.42,154.38,20.0]
[1729303343452,23.776884,154.47,154.38,20.0]
[1729303343868,6.72370724,154.42,154.38,20.0]
[1729303344148,23.776884,154.47,154.38,20.0]
[1729303344346,6.72425643,154.42,154.38,20.0]
[1729303344544,23.776884,154.47,154.38,20.0]
[1729303344851,6.72426766,154.42,154.38,20.0]
[1729303345053,23.776884,154.41,154.3,10.11214443]
[1729303345232,6.7247496,154.42,154.3,10.11214443]
[1729303345434,23.776884,154.41,154.3,10.11214443]
[1729303345954,23.776884,154.41,154.3,18.25671706]
[1729303346848,6.7247496,154.42,154.31,28.14457263]
[1729303350830,6.7247496,154.42,154.33,20.0]
[1729303351036,6.7247496,154.42,154.33,28.14457263]
[1729303351340,6.7247496,154.42,154.33,20.0]
[1729303351651,6.7247496,154.42,154.33,28.14457263]
[1729303352661,6.7247496,154.42,154.35,20.0]
[1729303355342,23.776884,154.41,154.34,8.14457263]
[1729303356850,23.776884,154.41,154.35,20.0]
[1729303357250,23.776884,154.41,154.32,20.0]
[1729303362554,22.9921496,154.42,154.32,20.0]
[1729303362753,22.9921496,154.42,154.34,20.0]
[1729303365967,22.9921496,154.42,154.34,8.14457263]
[1729303366140,22.9921496,154.42,154.35,20.0]
[1729303372868,22.9921496,154.42,154.35,28.14457263]
[1729303384562,22.9921496,154.42,154.35,20.0]
[1729303387270,22.9921496,154.42,154.32,20.0]
[1729303387670,22.9921496,154.42,154.34,20.0]
[1729303387872,22.9921496,154.42,154.34,28.14457263]
[1729303389386,22.9921496,154.42,154.34,20.0]
[1729303389578,22.9921496,154.42,154.36,20.0]
[1729303396792,22.9921496,154.42,154.34,28.14457263]
[1729303399275,6.7247496,154.42,154.34,37.3239644]
[1729303399476,6.7247496,154.42,154.35,9.17939177]
[1729303399681,6.7247496,154.42,154.36,28.14457263]
[1729303402293,6.7247496,154.42,154.36,20.0]
[1729303403279,6.7247496,154.42,154.36,28.14457263]
[1729303417189,6.7247496,154.42,154.36,20.0]
[1729303417685,6.7247496,154.42,154.36,28.14457263]
[1729303420715,6.7247496,154.42,154.38,43.776884]
[1729303420905,6.7247496,154.42,154.39,8.14457263]
[1729303421100,6.7247496,154.42,154.4,20.0]
[1729303421411,6.7247496,154.42,154.41,28.14457263]
[1729303423409,6.7247496,154.42,154.35,20.0]
[1729303423593,6.7247496,154.42,154.38,20.0]
[1729303425395,6.7247496,154.42,154.36,20.0]
[1729303426407,6.7247496,154.42,154.35,9.50543379]
[1729303426905,6.7247496,154.42,154.32,10.11214443]
[1729303427107,15.2808,154.41,154.32,10.11214443]
[1729303427817,6.72133435,154.4,154.32,10.11214443]
[1729303429209,6.72133435,154.4,154.32,19.61757822]
[1729303433801,13.22773435,154.4,154.32,9.50543379]
[1729303434002,23.776884,154.39,154.32,9.50543379]
[1729303434513,30.253984,154.39,154.28,9.50543379]
[1729303436204,30.253984,154.39,154.28,19.61757822]
[1729303437401,30.253984,154.39,154.3,0.14]
[1729303438099,6.71969052,154.38,154.3,0.14]
[1729303441632,6.71969052,154.38,154.3,9.64543379]
[1729303450414,6.71969052,154.38,154.31,9.50543379]
[1729303450625,6.5064,154.4,154.32,0.14]
[1729303450909,13.22551021,154.4,154.32,0.14]
[1729303453114,6.71911021,154.4,154.32,0.14]
[1729303453792,6.71911021,154.4,154.32,9.64543379]
[1729303460027,6.71911021,154.4,154.33,9.50543379]
[1729303471927,6.71911021,154.4,154.32,0.14]
[1729303474330,30.280684,154.39,154.32,0.14]
[1729303475026,6.71680345,154.38,154.32,0.14]
[1729303496750,23.776884,154.4,154.32,0.14]
[1729303496950,30.49910851,154.4,154.32,0.14]
[1729303498832,6.72222451,154.4,154.32,0.14]
[1729303499550,6.72222451,154.4,154.32,9.64543379]
[1729303501850,23.776884,154.39,154.32,9.64543379]
[1729303505554,6.72222451,154.4,154.32,9.64543379]
[1729303508736,6.72222451,154.4,154.33,9.50543379]
[1729303509045,6.72222451,154.4,154.34,2.68]
[1729303515365,23.776884,154.37,154.26,10.74189993]
[1729303515952,6.72431395,154.36,154.26,10.74189993]
[1729303517859,6.72431395,154.36,154.26,19.7201115]
[1729303519263,23.776884,154.35,154.26,19.7201115]
[1729303519567,23.776884,154.35,154.26,9.60796707]
[1729303526773,6.72431395,154.36,154.26,9.60796707]
[1729303529375,23.776884,154.35,154.26,9.60796707]
[1729303530386,23.776884,154.36,154.26,9.60796707]
[1729303530561,6.72491742,154.34,154.27,2.81]
[1729303549497,6.72491742,154.34,154.26,9.60796707]
[1729303566085,6.72491742,154.34,154.27,0.19]
[1729303571179,6.72491742,154.34,154.27,9.16821157]
[1729303571386,23.776884,154.37,154.27,9.16821157]
[1729303571606,6.72676187,154.36,154.27,9.16821157]
[1729303571984,22.5267,154.38,154.28,8.97821157]
[1729303572201,16.3496,154.38,154.29,2.49]
[1729303572408,23.07851661,154.38,154.29,11.46821157]
[1729303574494,23.07851661,154.38,154.29,27.72301157]
[1729303587035,23.04611955,154.38,154.29,27.72301157]
[1729303593938,23.776884,154.37,154.29,11.46821157]
[1729303596329,30.254984,154.37,154.29,11.46821157]
[1729303596637,30.254984,154.37,154.29,2.49]
[1729303596638,6.74017547,154.36,154.29,2.49]
[1729303599028,6.74017547,154.36,154.26,0.6297555]
[1729303602107,23.776884,154.35,154.26,0.6297555]
[1729303604337,23.776884,154.35,154.26,9.60796707]
[1729303609526,23.776884,154.35,154.27,8.97821157]
[1729303611349,6.74017547,154.36,154.27,8.97821157]